bitfinex/quotes_ETHUSD_20230404
["timestamp","ask_amount","ask_price","bid_price","bid_amount"]
[1680621411654,15.30553218,1860.4,1860.3,0.1]
[1680621411828,16.44453218,1860.4,1860.3,0.1]
[1680621412029,18.20529333,1860.4,1860.3,0.1]
[1680621412254,18.73894856,1860.4,1860.3,0.1]
[1680621413007,19.88194856,1860.4,1860.3,0.1]
[1680621413371,13.855,1860.3,1860.2,0.02671822]
[1680621413573,23.3740617,1860.3,1860.2,0.02671822]
[1680621413889,14.3330117,1860.3,1860.2,0.02671822]
[1680621414227,14.5630117,1860.3,1860.2,0.02671822]
[1680621414610,17.7720117,1860.3,1860.2,0.02671822]
[1680621417412,18.9150117,1860.3,1860.2,0.02671822]
[1680621417563,17.7640117,1860.3,1860.2,0.02671822]
[1680621418772,0.5,1860.1,1859.9,0.1]
[1680621419009,19.15302218,1860.0,1859.8,0.06393]
[1680621419307,13.82083218,1859.9,1859.8,0.06393]
[1680621419604,15.90783218,1859.9,1859.8,0.06393]
[1680621419805,13.87049692,1859.9,1859.8,0.06393]
[1680621420465,5.76902218,1859.9,1859.8,0.06393]
[1680621420716,5.91956218,1859.9,1859.8,0.06393]
[1680621420942,6.07011218,1859.9,1859.8,0.06393]
[1680621421266,5.91956218,1859.9,1859.8,0.06393]
[1680621421618,11.86665218,1859.9,1859.8,0.06393]
[1680621421958,6.14956218,1859.9,1859.8,0.06393]
[1680621422317,6.45065218,1859.9,1859.8,0.06393]
[1680621422657,12.09665218,1859.9,1859.8,0.06393]
[1680621423359,5.91956218,1859.9,1859.8,0.06393]
[1680621423659,5.76902218,1859.9,1859.8,0.06393]
[1680621423866,5.91956218,1859.9,1859.8,0.06393]
[1680621424048,5.76902218,1859.9,1859.8,0.06393]
[1680621424218,5.91956218,1859.9,1859.8,0.06393]
[1680621424679,3.003,1859.9,1859.8,0.06393]
[1680621424879,11.56256218,1859.9,1859.8,0.06393]
[1680621425087,5.76902218,1859.9,1859.8,0.06393]
[1680621425247,5.91956218,1859.9,1859.8,0.06393]
[1680621426380,5.76902218,1859.9,1859.8,0.06393]
[1680621426538,3.003,1859.9,1859.8,0.06393]
[1680621426739,3.0,1859.9,1859.8,0.06393]
[1680621426944,0.16591928,1860.0,1859.8,0.06393]
[1680621427182,2.93194146,1860.0,1859.8,0.06393]
[1680621427384,2.76602218,1860.0,1859.8,0.06393]
[1680621427682,2.91655218,1860.0,1859.8,0.06393]
[1680621427992,0.003,1860.1,1859.8,0.06393]
[1680621428178,2.76602218,1860.1,1859.8,0.06393]
[1680621428379,2.76602218,1860.0,1859.8,0.06393]
[1680621428563,2.91655218,1860.0,1859.8,0.06393]
[1680621429055,2.76602218,1860.0,1859.8,0.06393]
[1680621432451,2.76602218,1860.0,1859.7,0.43017]
[1680621432675,0.009,1860.0,1859.7,0.21508]
[1680621432993,0.003,1860.1,1859.7,0.21508]
[1680621432994,0.009,1860.1,1859.8,1.148]
[1680621433199,0.009,1860.1,1860.0,0.21505]
[1680621433898,0.009,1860.1,1860.0,1.78615]
[1680621434270,0.009,1860.1,1860.0,1.35605]
[1680621435178,0.009,1860.1,1860.0,1.141]
[1680621435381,0.009,1860.1,1860.0,1.546147]
[1680621436197,0.009,1860.1,1860.0,0.190097]
[1680621436397,0.009,1860.1,1859.9,0.1148]
[1680621436762,0.009,1860.1,1859.9,0.32986]
[1680621437305,0.009,1860.1,1859.8,20.01356]
[1680621437450,0.009,1860.1,1859.8,20.44371]
[1680621437651,0.009,1860.1,1859.8,13.83751]
[1680621438110,0.009,1860.1,1859.8,14.98851]
[1680621438508,0.009,1860.1,1859.9,1.498851]
[1680621438807,0.009,1860.1,1859.9,1.713901]
[1680621440437,0.009,1860.1,1859.9,2.144031]
[1680621442206,40.012,1860.2,1859.9,1.713901]
[1680621443448,40.012,1860.2,1859.9,1.498851]
[1680621443740,40.16252,1860.2,1859.9,1.498851]
[1680621443948,40.46356,1860.2,1859.8,14.3453]
[1680621444152,40.46356,1860.2,1859.8,13.1923]
[1680621444153,43.22958218,1860.2,1859.8,13.1923]
[1680621444304,0.4516,1860.0,1859.8,13.1923]
[1680621444508,3.21762218,1860.0,1859.8,13.1923]
[1680621444829,2.92555218,1860.0,1859.8,13.1923]
[1680621446531,3.22662218,1860.0,1859.8,13.1923]
[1680621446734,2.78141146,1859.9,1859.7,0.002]
[1680621446932,2.93196146,1859.9,1859.5,13.0711]
[1680621447137,2.93196146,1859.9,1859.5,14.49301]
[1680621447138,2.94096146,1859.9,1859.5,14.49301]
[1680621447466,2.94096146,1859.9,1859.4,0.002]
[1680621447467,10.39350146,1859.9,1859.4,0.002]
[1680621447666,1.151,1859.7,1859.4,12.8772]
[1680621447949,3.34822146,1859.6,1859.3,0.3288]
[1680621448170,8.84365146,1859.6,1859.3,0.3248]
[1680621448468,2.16839515,1859.5,1859.3,0.3248]
[1680621448757,2.76602218,1859.4,1859.3,0.3248]
[1680621448959,2.91660218,1859.4,1859.3,0.3248]
[1680621449110,6.22677218,1859.4,1859.3,0.3248]
[1680621449314,6.22977218,1859.4,1859.3,0.3248]
[1680621449660,7.56601891,1859.4,1859.3,0.3248]
[1680621450009,16.65101891,1859.4,1859.3,0.3248]
[1680621450238,11.00501891,1859.4,1859.3,0.3248]
[1680621450546,6.15860218,1859.4,1859.3,0.3248]
[1680621450787,9.66877218,1859.4,1859.3,0.3248]
[1680621451292,5.92860218,1859.4,1859.3,0.3248]
[1680621451474,6.22977218,1859.4,1859.3,0.3248]
[1680621452047,0.012,1859.4,1859.3,0.3248]
[1680621452256,0.15956,1859.8,1859.3,0.3248]
[1680621452451,2.76602218,1859.7,1859.3,0.3248]
[1680621452687,2.92558218,1859.7,1859.3,13.1968]
[1680621453190,3.22670218,1859.7,1859.3,13.1968]
[1680621453396,5.646,1859.6,1859.3,13.1968]
[1680621453599,2.76602218,1859.5,1859.3,13.1968]
[1680621453899,2.77502218,1859.5,1859.3,13.1968]
[1680621454100,2.92559218,1859.5,1859.3,13.1968]
[1680621454899,2.77502218,1859.5,1859.3,13.1968]
[1680621456501,0.009,1859.5,1859.3,13.1968]
[1680621456705,0.01538928,1859.6,1859.5,0.00293238]
[1680621457128,0.16595928,1859.6,1859.5,0.00293238]
[1680621457263,8.57798146,1859.6,1859.5,0.00293238]
[1680621457463,6.15298146,1859.6,1859.5,0.00293238]
[1680621457808,3.46563152,1859.6,1859.5,0.00293238]
[1680621457968,3.02041146,1859.6,1859.5,0.00293238]
[1680621458722,2.94098146,1859.6,1859.5,0.00293238]
[1680621459043,2.79041146,1859.6,1859.5,0.00293238]
[1680621459855,0.009,1859.6,1859.5,0.00293238]
[1680621460016,0.009,1859.8,1859.5,0.00293238]
[1680621460351,2.76602218,1859.7,1859.5,0.00293238]
[1680621460551,8.8490844,1859.7,1859.5,0.00293238]
[1680621460739,8.8520844,1859.7,1859.5,0.00293238]
[1680621460943,12.0610844,1859.7,1859.5,0.00293238]
[1680621461260,12.63030353,1859.7,1859.5,0.00293238]
[1680621461617,0.23,1859.6,1859.5,0.00293238]
[1680621461974,13.59776253,1859.6,1859.5,0.00293238]
[1680621462148,18.00986166,1859.6,1859.5,0.00293238]
[1680621463166,19.16086166,1859.6,1859.5,0.00293238]
[1680621463336,18.03525094,1859.6,1859.5,0.00293238]
[1680621463539,18.58593889,1859.6,1859.5,0.00293238]
[1680621465529,23.58593889,1859.6,1859.5,0.00293238]
[1680621465730,13.86379714,1859.4,1859.3,0.3248]
[1680621465959,13.86379714,1859.4,1858.5,13.0046633]
[1680621465960,8.855,1859.1,1858.5,13.0046633]
[1680621466170,8.855,1859.1,1858.5,13.0106633]
[1680621466171,8.86388218,1859.0,1858.5,13.0106633]
[1680621466469,0.45192,1858.7,1858.3,0.1]
[1680621466691,3.209,1858.4,1858.3,0.1]
[1680621466979,3.209,1858.4,1858.1,0.1]
[1680621466980,5.646,1858.3,1858.1,0.05]
[1680621467267,0.003,1858.3,1858.1,0.05]
[1680621467477,2.76602218,1858.4,1857.6,0.006]
[1680621467478,0.003,1858.4,1857.6,0.006]
[1680621467636,0.012,1858.8,1857.6,1.3415647]
[1680621467841,2.92566218,1858.8,1857.7,13.8392647]
[1680621468079,3.5633719,1858.7,1857.8,0.21529]
[1680621468304,0.01538928,1858.6,1858.0,1.148]
[1680621468572,0.01538928,1858.6,1858.0,1.36328]
[1680621468937,0.01538928,1858.6,1858.2,0.21525]
[1680621469123,0.79734972,1858.7,1858.2,1.36625]
[1680621469328,3.26809913,1859.2,1858.4,1.143]
[1680621469329,0.009,1859.1,1858.4,1.143]
[1680621469530,0.009,1859.3,1858.7,0.21519]
[1680621469725,0.01479714,1859.4,1858.7,0.21519]
[1680621469963,0.00879714,1859.4,1858.9,1.151]
[1680621470165,0.00879714,1859.4,1859.0,12.6733]
[1680621470378,0.00879714,1859.4,1859.0,19.08531341]
[1680621471277,2.76602218,1859.3,1859.0,19.078]
[1680621471577,2.76602218,1859.3,1859.0,12.6733]
[1680621471744,0.009,1859.3,1859.0,13.94083]
[1680621472068,0.00879714,1859.4,1859.0,13.94083]
[1680621473558,0.00879714,1859.4,1859.0,15.30699]
[1680621473952,0.00879714,1859.4,1859.1,0.00731301]
[1680621474273,0.00879714,1859.4,1859.1,1.75389331]
[1680621474769,0.00879714,1859.4,1859.1,1.53874331]
[1680621474973,0.00879714,1859.4,1859.1,1.75389331]
[1680621475180,0.00879714,1859.4,1859.1,1.53874331]
[1680621475467,0.00879714,1859.4,1859.0,13.94283]
[1680621475674,0.00879714,1859.4,1859.0,15.30699]
[1680621475876,0.00879714,1859.4,1859.2,1.143]
[1680621476675,0.00879714,1859.4,1859.2,1.35814]
[1680621476837,0.00879714,1859.4,1859.3,0.135814]
[1680621477216,0.00879714,1859.4,1859.3,6.546514]
[1680621478425,0.02418642,1859.4,1859.3,6.546514]
[1680621478678,0.02418642,1859.4,1859.3,6.4107]
[1680621479579,0.00879714,1859.4,1859.2,0.002]
[1680621479890,0.1506,1859.2,1859.0,12.6753]
[1680621480030,2.76602218,1859.1,1859.0,12.6733]
[1680621480231,2.77502218,1859.1,1858.9,0.002]
[1680621480466,2.76602218,1859.1,1858.5,18.9245]
[1680621480780,2.76602218,1859.1,1858.6,2.10766]
[1680621480964,0.009,1859.2,1858.7,2.76602218]
[1680621481129,0.55892723,1859.4,1858.8,1.148]
[1680621481432,0.55892723,1859.4,1858.9,0.0648]
[1680621481741,0.15937714,1859.4,1858.9,0.0648]
[1680621482061,0.15937714,1859.4,1858.9,12.4328]
[1680621482266,2.76602218,1859.3,1858.9,12.4328]
[1680621482937,2.93200146,1859.3,1858.9,12.4328]
[1680621483172,2.78141146,1859.3,1858.9,12.4328]
[1680621483352,2.93200146,1859.3,1858.9,12.4328]
[1680621483549,13.98145032,1859.3,1858.9,12.4328]
[1680621483753,13.98145032,1859.3,1858.8,0.006]
[1680621483754,2.76602218,1859.2,1858.8,0.006]
[1680621483953,2.76602218,1859.2,1858.5,6.77682]
[1680621483954,13.87741146,1859.1,1858.5,6.5636]
[1680621484277,5.646,1858.8,1858.5,0.006]
[1680621484480,5.649,1858.8,1858.0,0.21527]
[1680621484637,0.16602928,1858.7,1858.0,0.22127]
[1680621484976,2.76602218,1858.6,1858.0,1.986587]
[1680621485132,2.91667218,1858.6,1858.0,1.992587]
[1680621485327,2.93206146,1858.6,1858.0,1.992587]
[1680621485648,3.23336146,1858.6,1858.0,1.992587]
[1680621485845,2.93206146,1858.6,1858.1,0.1992587]
[1680621486179,3.23336146,1858.6,1858.0,1.992587]
[1680621486474,5.646,1858.4,1857.9,13.1936]
[1680621486775,3.48129218,1858.3,1857.9,13.1916]
[1680621487077,2.76602218,1858.3,1857.9,13.1916]
[1680621487284,0.006,1858.4,1857.9,13.1916]
[1680621487576,2.76602218,1858.4,1857.9,13.1856]
[1680621487779,2.76602218,1858.4,1858.0,1.31856]
[1680621487983,0.003,1858.5,1858.0,1.31856]
[1680621488139,2.76602218,1858.5,1858.0,1.53384]
[1680621488330,0.31328,1858.7,1858.0,7.76716]
[1680621488533,2.91667218,1858.6,1858.1,0.776716]
[1680621488732,2.76602218,1858.6,1858.1,0.776716]
[1680621489034,0.16265,1858.7,1858.1,0.776716]
[1680621489230,2.76602218,1858.6,1858.2,0.0776716]
[1680621489435,2.76602218,1858.6,1858.1,0.78403295]
[1680621489661,0.15066,1858.5,1858.1,0.78403295]
[1680621490094,2.91668218,1858.5,1858.1,0.78403295]
[1680621490297,3.21799218,1858.5,1858.1,0.002]
[1680621490446,3.21799218,1858.5,1858.0,6.4546]
[1680621490648,2.76602218,1858.4,1858.0,0.006]
[1680621490855,0.46740928,1858.3,1857.9,13.1916]
[1680621491091,2.76602218,1858.2,1857.9,13.1916]
[1680621491307,3.21807218,1858.2,1857.9,13.1916]
[1680621491605,2.93210146,1858.2,1857.9,13.1916]
[1680621491769,2.78141146,1858.2,1857.9,13.1916]
[1680621492362,0.003,1858.3,1857.9,14.0106253]
[1680621492564,2.76602218,1858.2,1857.9,14.0046253]
[1680621492913,2.76602218,1858.1,1857.9,13.1916]
[1680621493692,0.01838928,1858.3,1857.9,13.1916]
[1680621493879,2.76602218,1858.2,1857.9,13.1916]
[1680621494079,8.41202218,1858.2,1857.9,0.006]
[1680621494278,7.94860222,1858.1,1857.8,0.1]
[1680621494492,2.91671218,1858.0,1857.8,0.1]
[1680621494764,13.64702218,1857.9,1857.8,0.1]
[1680621494974,14.03072218,1857.9,1857.8,0.1]
[1680621495209,15.4639334,1857.9,1857.8,0.1]
[1680621495415,22.54051253,1857.9,1857.8,0.1]
[1680621495596,25.54051253,1857.9,1857.6,0.1]
[1680621495907,25.54051253,1857.9,1857.2,0.006]
[1680621495908,25.54051253,1857.9,1856.3,0.84112801]
[1680621495909,2.76602218,1856.4,1856.3,0.84112801]
[1680621496062,2.76602218,1856.4,1855.8,1.12185012]
[1680621496063,5.0,1856.2,1855.4,0.79140063]
[1680621496261,5.0,1856.2,1855.3,0.5]
[1680621496262,7.2,1855.4,1855.3,0.5]
[1680621496463,7.2,1855.4,1855.0,0.84174765]
[1680621496464,7.2,1854.9,1854.8,1.85059037]
[1680621496672,7.2,1854.9,1853.9,1.4026889]
[1680621496673,9.033,1854.9,1853.9,1.4026889]
[1680621496874,9.033,1854.9,1853.5,0.004]
[1680621496875,0.45292,1854.6,1853.5,0.004]
[1680621497167,1.78847159,1854.6,1853.9,1.767]
[1680621497396,10.92,1854.3,1854.0,5.81607213]
[1680621497600,3.01538928,1854.2,1853.5,0.004]
[1680621497781,3.01538928,1854.2,1852.7,0.22099911]
[1680621497782,0.01538928,1854.2,1853.9,0.004]
[1680621497965,0.01538928,1854.2,1852.7,0.22099911]
[1680621497966,5.0,1853.6,1852.7,0.22099911]
[1680621498170,2.026,1853.1,1852.7,0.12099911]
[1680621498400,2.026,1853.1,1852.0,1.0]
[1680621498401,10.62,1853.3,1852.5,0.00733907]
[1680621498565,0.012,1853.3,1852.0,1.0]
[1680621498762,0.012,1853.5,1852.0,1.0]
[1680621498962,0.012,1853.8,1852.4,2.2]
[1680621499165,1.53133378,1854.6,1853.4,2.01]
[1680621499467,1.62325268,1854.7,1853.5,0.201]
[1680621499468,0.13372835,1854.7,1853.5,0.201]
[1680621499684,0.56102632,1854.9,1853.6,2.026]
[1680621499883,0.012,1855.4,1853.8,2.2]
[1680621500083,6.67973722,1855.5,1854.4,2.023]
[1680621500084,0.012,1855.5,1854.4,2.023]
[1680621500370,0.012,1855.8,1854.8,2.017]
[1680621500575,5.79683,1856.3,1855.0,2.026]
[1680621500576,2.026,1856.2,1855.0,2.026]
[1680621500776,0.012,1856.3,1855.2,2.021]
[1680621500777,3.209,1856.3,1855.2,2.021]
[1680621500991,3.209,1856.3,1855.4,2.025]
[1680621501219,0.01538928,1856.2,1855.5,0.0073272]
[1680621501378,2.24398563,1856.4,1855.5,0.0073272]
[1680621501809,3.209,1856.0,1854.8,2.202]
[1680621502011,5.0,1855.8,1854.7,3.004]
[1680621502312,5.0,1855.8,1854.5,0.002]
[1680621502313,5.0,1855.7,1854.5,0.002]
[1680621502468,4.263,1855.4,1854.4,10.6192]
[1680621502670,3.218,1855.4,1854.4,10.6192]
[1680621503010,3.218,1855.4,1854.3,0.002]
[1680621503212,3.209,1855.1,1853.9,2.2]
[1680621503914,0.23,1855.0,1853.9,2.2]
[1680621504112,0.23,1855.0,1853.8,11.2691]
[1680621504276,3.209,1854.9,1853.8,11.2611]
[1680621504472,0.23,1854.8,1853.8,11.2611]
[1680621504695,3.218,1854.9,1853.8,11.2611]
[1680621504893,3.209,1854.9,1853.8,11.2671]
[1680621505221,3.209,1854.9,1853.8,11.2611]
[1680621505421,5.0,1854.7,1853.8,12.40827]
[1680621505714,3.209,1854.4,1853.8,0.006]
[1680621505871,8.439,1854.3,1853.3,10.6987]
[1680621506071,5.0,1853.6,1853.2,0.008]
[1680621506414,5.0,1853.6,1852.6,0.5]
[1680621506415,5.99773865,1853.5,1852.6,10.7047]
[1680621506618,0.003,1853.5,1852.7,2.2]
[1680621506774,8.012,1854.3,1852.9,4.263]
[1680621506968,3.012,1854.3,1853.0,0.5]
[1680621507170,2.76602218,1854.2,1853.0,3.1763]
[1680621507392,5.009,1854.3,1853.0,3.1763]
[1680621507592,5.003,1854.3,1853.0,0.9763]
[1680621507844,5.003,1854.3,1853.0,3.1783]
[1680621508143,5.003,1854.3,1853.1,0.31783]
[1680621508350,0.003,1854.3,1853.2,0.23]
[1680621508542,0.012,1854.7,1853.3,6.636]
[1680621508710,7.77502218,1854.7,1853.4,0.8936]
[1680621508901,7.77802218,1854.7,1853.4,0.8436]
[1680621509098,0.012,1854.7,1853.5,0.5]
[1680621509301,0.012,1854.7,1853.6,6.606]
[1680621509302,2.76602218,1854.6,1853.6,6.606]
[1680621509606,2.77502218,1854.6,1853.7,3.0]
[1680621509918,0.02271647,1854.5,1853.8,0.3]
[1680621510242,0.03171647,1854.5,1853.7,0.5]
[1680621510448,7.76602218,1854.4,1853.5,11.50016]
[1680621510768,5.0,1853.6,1853.4,0.002]
[1680621510903,5.0,1853.1,1852.3,11.1718]
[1680621511244,0.012,1853.1,1852.4,1.11718]
[1680621511457,0.009,1853.5,1852.4,1.11718]
[1680621511756,2.77502218,1853.5,1852.4,1.11718]
[1680621512062,0.009,1853.6,1852.5,0.5]
[1680621512199,0.009,1854.2,1852.7,6.602]
[1680621512553,5.15099,1854.5,1853.0,2.2]
[1680621512554,0.009,1854.3,1853.0,2.2]
[1680621512718,0.003,1854.5,1853.2,7.846]
[1680621512719,2.325e-05,1854.4,1853.2,7.846]
[1680621512917,5.003,1854.7,1853.3,0.73]
[1680621513118,5.003,1854.7,1853.4,0.073]
[1680621513311,0.003,1854.7,1853.4,0.29481]
[1680621513614,6.615,1855.0,1853.4,0.29481]
[1680621513615,0.003,1855.0,1853.6,0.71579]
[1680621513798,0.003,1855.0,1853.6,0.006]
[1680621513799,3.209,1854.2,1853.6,0.006]
[1680621513999,5.0,1854.3,1852.2,2.41595]
[1680621514000,5.0,1854.0,1853.0,0.006]
[1680621514248,13.19730597,1853.9,1853.0,0.006]
[1680621514451,5.0,1853.5,1852.6,0.006]
[1680621514600,3.23171647,1853.4,1852.6,0.006]
[1680621514927,5.2908156,1853.4,1852.6,0.006]
[1680621515245,5.2908156,1853.4,1852.3,0.1]
[1680621515246,0.38108,1853.3,1852.4,0.002]
[1680621515449,5.0,1853.1,1852.4,0.002]
[1680621515758,3.439,1853.0,1852.4,0.006]
[1680621516067,0.02271647,1852.9,1852.4,0.006]
[1680621516216,0.003,1853.1,1852.4,0.006]
[1680621516419,2.76602218,1853.1,1852.4,0.006]
[1680621516724,0.003,1853.2,1852.4,0.006]
[1680621516944,0.55,1853.2,1852.4,0.006]
[1680621517100,0.00602325,1853.2,1852.3,0.056]
[1680621517450,0.02271647,1853.1,1852.3,0.056]
[1680621517652,2.76602218,1853.0,1852.3,0.056]
[1680621517961,0.00602325,1853.0,1852.3,5.91794]
[1680621518098,2.325e-05,1853.5,1852.5,12.289]
[1680621518305,0.00602325,1853.5,1852.7,5.646]
[1680621518511,0.00602325,1853.5,1852.9,5.646]
[1680621518512,2.325e-05,1853.5,1852.9,5.646]
[1680621518847,0.003,1853.8,1853.0,11.41202218]
[1680621518848,0.00602325,1853.8,1853.0,11.41202218]
[1680621519046,0.00602325,1853.9,1853.2,8.41202218]
[1680621519343,0.00602325,1854.2,1853.4,5.646]
[1680621519496,0.00602325,1854.2,1853.5,8.41202218]
[1680621519698,0.00602325,1854.2,1853.6,0.84120222]
[1680621519897,0.00602325,1854.4,1853.7,8.91202218]
[1680621520132,0.00302325,1854.5,1853.7,8.41202218]
[1680621520318,0.00602325,1854.5,1853.8,8.646]
[1680621520513,0.00602325,1854.5,1854.0,0.5]
[1680621520716,0.00602325,1854.8,1854.1,2.76602218]
[1680621521030,0.00602325,1855.0,1854.2,0.5]
[1680621521240,5.0,1855.4,1854.3,5.646]
[1680621521431,0.55,1855.3,1854.4,0.5646]
[1680621521598,0.55602325,1855.3,1854.4,0.5646]
[1680621521797,0.55602325,1855.3,1854.4,3.33062218]
[1680621521798,0.00602325,1855.3,1854.4,3.33062218]
[1680621522001,0.00602325,1855.3,1854.4,0.5646]
[1680621522002,0.02271647,1855.2,1854.4,0.5646]
[1680621522246,0.02271647,1855.2,1854.2,3.27660222]
[1680621522398,0.02271647,1855.2,1854.3,2.98172218]
[1680621522602,0.02873972,1855.2,1854.2,3.49432222]
[1680621522799,3.209,1854.9,1853.8,0.006]
[1680621523001,5.0,1854.6,1854.1,0.002]
[1680621523218,10.646,1854.2,1854.1,0.002]
[1680621523449,5.00902325,1854.2,1854.1,0.002]
[1680621523637,5.003,1854.2,1853.3,0.006]
[1680621523811,0.02271647,1854.1,1853.0,0.006]
[1680621524012,0.02271647,1854.1,1853.1,0.21584]
[1680621524247,0.10000001,1854.0,1853.1,5.652]
[1680621524447,0.10000001,1854.0,1853.3,5.646]
[1680621524657,0.10000001,1854.0,1853.3,5.86782]
[1680621524809,0.10000001,1854.0,1853.4,0.5]
[1680621525150,0.10000001,1854.0,1853.5,5.86179]
[1680621525151,1e-08,1854.0,1853.5,5.86179]
[1680621525356,5.0,1855.2,1853.9,0.21576]
[1680621525357,0.008764,1855.2,1853.9,0.21576]
[1680621525509,0.00578725,1855.9,1854.7,12.239]
[1680621525712,0.434223,1856.0,1854.7,12.239]
[1680621525713,0.431223,1856.0,1854.8,8.646]
[1680621526057,0.431223,1856.0,1854.9,1.08023]
[1680621526220,5.0,1855.9,1854.7,6.601]
[1680621526560,5.00602325,1855.9,1854.9,0.21563]
[1680621526706,5.00878725,1855.9,1854.8,0.21564]
[1680621526907,0.26809913,1855.8,1854.8,0.95766622]
[1680621527113,0.26809913,1855.8,1854.8,2.76602218]
[1680621527404,5.00878725,1855.9,1854.8,2.98166218]
[1680621527509,5.00878725,1855.9,1854.9,2.76602218]
[1680621527714,5.00878725,1855.9,1855.0,0.27660222]
[1680621527917,0.02271647,1855.8,1855.0,0.27660222]
[1680621528224,0.02271647,1855.8,1854.9,0.21564]
[1680621528409,0.02271647,1855.8,1854.8,0.21565]
[1680621528410,0.2908156,1855.8,1854.8,0.21565]
[1680621528613,0.2908156,1855.8,1854.9,0.21563]
[1680621529062,0.02271647,1855.8,1855.0,2.76602218]
[1680621529212,0.02271647,1855.8,1855.0,0.29816622]
[1680621529408,0.02271647,1855.8,1855.0,0.51379622]
[1680621530144,0.02271647,1855.8,1855.0,1.44505622]
[1680621530513,0.02271647,1855.8,1855.0,0.51379622]
[1680621531563,0.02271647,1855.8,1855.0,8.9258184]
[1680621531715,0.02271647,1855.8,1855.3,0.21559]
[1680621532645,0.02271647,1855.8,1855.2,0.43121]
[1680621532646,2.76602218,1855.7,1855.0,0.51378622]
[1680621532817,2.76602218,1855.7,1855.0,0.21562]
[1680621533017,2.76602218,1855.7,1854.9,0.21563]
[1680621533241,0.02271647,1855.6,1855.0,2.98165218]
[1680621533704,0.43701025,1856.0,1855.3,6.29277]
[1680621533862,0.43701025,1856.0,1855.5,1.50897]
[1680621533863,0.431223,1856.0,1855.5,1.50897]
[1680621534063,0.431223,1856.0,1855.6,0.150897]
[1680621534220,0.431223,1856.0,1855.6,0.366447]
[1680621534419,0.431223,1856.0,1855.6,0.21555]
[1680621535359,0.431223,1856.0,1855.6,8.62757218]
[1680621535559,0.431223,1856.0,1855.6,0.21555]
[1680621536665,0.38401025,1856.0,1855.5,0.21557]
[1680621536962,0.381223,1856.0,1855.4,0.21557]
[1680621537262,0.381223,1856.0,1855.4,0.280846]
[1680621538086,2.76602218,1855.9,1855.2,0.21559]
[1680621539594,0.384223,1856.0,1855.3,2.76602218]
[1680621539886,0.384223,1856.0,1855.5,0.64671]
[1680621539887,0.381223,1856.0,1855.5,0.64671]
[1680621540096,0.381223,1856.0,1855.4,1.36231]
[1680621540097,0.381223,1856.0,1855.7,0.64663]
[1680621542802,0.87300001,1856.4,1855.7,0.64663]
[1680621542803,0.87000001,1856.4,1855.7,0.64663]
[1680621542968,0.02271647,1856.2,1855.7,0.21554]
[1680621543159,3.06761252,1856.2,1855.7,0.21554]
[1680621543361,3.06761252,1856.2,1855.4,0.006]
[1680621543573,3.06761252,1856.2,1855.5,0.21556]
[1680621543774,2.76602218,1856.1,1855.5,0.21556]
[1680621543978,0.02271647,1856.0,1855.2,0.4372]
[1680621544214,2.76602218,1855.9,1855.2,0.64882]
[1680621544367,0.02271647,1856.0,1855.2,0.65282]
[1680621544566,2.78873865,1856.0,1855.2,0.64682]
[1680621544873,0.003,1856.1,1855.3,8.47670418]
[1680621545084,0.87000001,1856.4,1855.3,8.47670418]
[1680621545085,0.87000001,1856.4,1855.5,1.50899]
[1680621545400,3.63602219,1856.4,1855.5,1.50899]
[1680621545574,3.63602219,1856.4,1855.5,4.27501218]
[1680621546112,0.87000001,1856.4,1855.7,5.646]
[1680621546279,0.87000001,1856.4,1855.9,1.50868]
[1680621546479,0.87000001,1856.4,1856.0,2.76602218]
[1680621546812,0.87000001,1856.4,1856.1,1.50851]
[1680621547106,0.15647713,1856.4,1856.2,2.76602218]
[1680621547311,0.15647713,1856.4,1856.3,1.78496222]
[1680621547613,0.15647713,1856.4,1856.3,6.42920218]
[1680621547933,0.15647713,1856.4,1856.3,4.27438218]
[1680621549097,0.15647713,1856.4,1856.3,7.27438218]
[1680621549303,0.11000001,1857.1,1856.3,7.27438218]
[1680621549468,0.11000001,1857.1,1856.4,0.72743822]
[1680621549469,0.02271647,1857.0,1856.4,0.72743822]
[1680621549825,0.02271647,1857.0,1856.5,0.21544]
[1680621549985,0.64632,1856.4,1856.3,0.002]
[1680621550180,0.55910752,1856.3,1856.1,0.43099]
[1680621550418,0.55910752,1856.3,1855.9,0.14327]
[1680621550720,0.55910752,1856.3,1855.9,0.64655]
[1680621551210,0.55910752,1856.3,1855.9,0.21551]
[1680621551779,0.00878725,1856.6,1856.0,2.76602218]
[1680621552112,0.64830959,1857.2,1856.2,9.30928]
[1680621552113,0.11000001,1857.2,1856.2,9.30928]
[1680621552312,2.87602219,1857.1,1856.3,11.1089]
[1680621552550,2.76602218,1857.0,1856.5,0.64636]
[1680621553231,2.76602218,1857.0,1856.3,0.002]
[1680621553232,8.209,1856.4,1856.3,0.002]
[1680621553371,8.209,1856.4,1855.2,0.002]
[1680621553372,5.0,1855.9,1855.2,0.002]
[1680621553567,5.97502218,1855.8,1855.2,0.006]
[1680621553830,5.97802218,1855.8,1855.2,0.2216]
[1680621554015,2.76902218,1855.8,1855.2,0.73406303]
[1680621554312,2.76602218,1855.8,1855.2,0.73406303]
[1680621554520,0.003,1855.9,1855.2,0.73406303]
[1680621554669,2.76602218,1855.9,1855.2,0.73406303]
[1680621554871,2.76602218,1855.9,1855.3,0.0734063]
[1680621555115,2.76602218,1855.9,1855.4,0.64673]
[1680621555268,0.003,1856.0,1855.4,0.64673]
[1680621555463,2.76602218,1856.0,1855.4,0.64673]
[1680621555664,2.61602218,1856.0,1855.4,0.711403]
[1680621555969,8.855,1855.6,1855.2,0.006]
[1680621556167,11.62102218,1855.5,1854.8,0.006]